Workbook

Sheet Dashboard
U1: Dernière mise à jour | W1: 2025-02-25T14:48:21

Sheet Opérations
G3: Nouvelle opération
G4: Veuillez saisir les détaille de l'opération de vente ou d'achat
G6: Référence | I6: Date
G9: Désignation | I9: Prix unitaire
G10: =IFERROR(VLOOKUP(G7,listeProduits[],2,FALSE),"") ->  | I10: 0
G12: Catégorie | I12: Quantité
G13: =IFERROR(VLOOKUP(G7,listeProduits[],3,FALSE),"") -> 
G15: Unité | I15: Total
G16: =IFERROR(VLOOKUP(G7,listeProduits[],4,FALSE),"") ->  | I16: =I10*I13 -> 0

Sheet Marchandises
C3: Nouvelle marchandise
C4: Veuillez saisir les informations de chaque marchandise
C6: Référence | E6: Seuil d'alerte | F6: 0
C7: Désignation | E7: Stock initial | F7: 0
C8: Catégorie | E8: Prix unitaire | F8: 0
C9: Unité | E9: Total | F9: =F7*F8 -> 0
C12: Liste des marchandises :
C14: Référence | D14: Désignation | E14: Catégorie | F14: Unité | G14: Seuil d'alerte | H14: Stock initial | I14: Prix unitaire | J14: Total
C15: S2 | D15: IPHONE 13 PRO | E15: SmartPhone | F15: 1 unité | G15: 10 | H15: 3 | I15: 1400 | J15: =listeProduits[[#This Row],[Stock initial]]*listeProduits[[#This Row],[Prix unitaire]] -> 4200
C16: C2 | D16: NINTENDO SWITCH | E16: Consoles | F16: 1 unité | G16: 10 | H16: 6 | I16: 400 | J16: =listeProduits[[#This Row],[Stock initial]]*listeProduits[[#This Row],[Prix unitaire]] -> 2400
C17: C1 | D17: PLAYSTATION PS5 | E17: Consoles | F17: 1 unité | G17: 10 | H17: 3 | I17: 750 | J17: =listeProduits[[#This Row],[Stock initial]]*listeProduits[[#This Row],[Prix unitaire]] -> 2250
C18: E4 | D18: Cuisinière CANDY | E18: Electro | F18: 1 unité | G18: 10 | H18: 0 | I18: 0 | J18: =listeProduits[[#This Row],[Stock initial]]*listeProduits[[#This Row],[Prix unitaire]] -> 0
C19: E3 | D19: Cuisinière SIERA | E19: Electro | F19: 1 unité | G19: 10 | H19: 6 | I19: 150 | J19: =listeProduits[[#This Row],[Stock initial]]*listeProduits[[#This Row],[Prix unitaire]] -> 900
C20: E2 | D20: Réfrigérateur SIERA | E20: Electro | F20: 1 unité | G20: 10 | H20: 3 | I20: 300 | J20: =listeProduits[[#This Row],[Stock initial]]*listeProduits[[#This Row],[Prix unitaire]] -> 900
C21: E1 | D21: Réfrigérateur WHIRLPOOL | E21: Electro | F21: 1 unité | G21: 10 | H21: 5 | I21: 700 | J21: =listeProduits[[#This Row],[Stock initial]]*listeProduits[[#This Row],[Prix unitaire]] -> 3500
C22: S1 | D22: GOOGLE PIXEL 5 | E22: SmartPhone | F22: 1 unité | G22: 10 | H22: 20 | I22: 600 | J22: =listeProduits[[#This Row],[Stock initial]]*listeProduits[[#This Row],[Prix unitaire]] -> 12000
C23: B1 | D23: Oreo | E23: Biscuits | F23: 1 unité | G23: 10 | H23: 10 | I23: 0.2 | J23: =listeProduits[[#This Row],[Stock initial]]*listeProduits[[#This Row],[Prix unitaire]] -> 2
C24: B2 | D24: Oreo | E24: Biscuits | F24: Pack de 10 unités | G24: 50 | H24: 15 | I24: 2 | J24: =listeProduits[[#This Row],[Stock initial]]*listeProduits[[#This Row],[Prix unitaire]] -> 30
C25: B3 | D25: Oreo | E25: Biscuits | F25: Pack de 20 unités | G25: 20 | H25: 5 | I25: 4 | J25: =listeProduits[[#This Row],[Stock initial]]*listeProduits[[#This Row],[Prix unitaire]] -> 20

Sheet Entrées
C3: Liste des entrées :
C4: Détails de toutes les transactions d'entrée
C6: Numéro | D6: Date | E6: Référence | F6: Désignation | G6: Catégorie | H6: Unité | I6: Coût d'achat | J6: Quantité | K6: Total
C7: =C8+1 -> 57 | D7: 2022-05-17 | E7: B2 | F7: Oreo | G7: Biscuits | H7: Pack de 10 unités | I7: 2500 | J7: 25 | K7: =listeAchats[[#This Row],[Coût d''achat]]*listeAchats[[#This Row],[Quantité]] -> 62500
C8: =C9+1 -> 56 | D8: 2022-05-17 | E8: E1 | F8: Réfrigérateur WHIRLPOOL | G8: Electro | H8: 1 unité | I8: 700 | J8: 5 | K8: =listeAchats[[#This Row],[Coût d''achat]]*listeAchats[[#This Row],[Quantité]] -> 3500
C9: =C10+1 -> 55 | D9: 2022-05-05 | E9: E4 | F9: Cuisinière CANDY | G9: Electro | H9: 1 unité | I9: 500 | J9: 10 | K9: =listeAchats[[#This Row],[Coût d''achat]]*listeAchats[[#This Row],[Quantité]] -> 5000
C10: 54 | D10: 2022-04-05 | E10: E4 | F10: Cuisinière CANDY | G10: Electro | H10: 1 unité | I10: 500 | J10: 10 | K10: =listeAchats[[#This Row],[Coût d''achat]]*listeAchats[[#This Row],[Quantité]] -> 5000
C11: 53 | D11: 2022-03-03 | E11: E4 | F11: Cuisinière CANDY | G11: Electro | H11: 1 unité | I11: 500 | J11: 10 | K11: =listeAchats[[#This Row],[Coût d''achat]]*listeAchats[[#This Row],[Quantité]] -> 5000
C12: 52 | D12: 2022-02-03 | E12: E4 | F12: Cuisinière CANDY | G12: Electro | H12: 1 unité | I12: 500 | J12: 10 | K12: =listeAchats[[#This Row],[Coût d''achat]]*listeAchats[[#This Row],[Quantité]] -> 5000
C13: 51 | D13: 2022-01-20 | E13: E4 | F13: Cuisinière CANDY | G13: Electro | H13: 1 unité | I13: 500 | J13: 20 | K13: =listeAchats[[#This Row],[Coût d''achat]]*listeAchats[[#This Row],[Quantité]] -> 10000
C14: 50 | D14: 2022-05-04 | E14: E3 | F14: Cuisinière SIERA | G14: Electro | H14: 1 unité | I14: 150 | J14: 5 | K14: =listeAchats[[#This Row],[Coût d''achat]]*listeAchats[[#This Row],[Quantité]] -> 750
C15: 49 | D15: 2022-04-04 | E15: E3 | F15: Cuisinière SIERA | G15: Electro | H15: 1 unité | I15: 150 | J15: 10 | K15: =listeAchats[[#This Row],[Coût d''achat]]*listeAchats[[#This Row],[Quantité]] -> 1500
C16: 48 | D16: 2022-03-03 | E16: E3 | F16: Cuisinière SIERA | G16: Electro | H16: 1 unité | I16: 150 | J16: 20 | K16: =listeAchats[[#This Row],[Coût d''achat]]*listeAchats[[#This Row],[Quantité]] -> 3000
C17: 47 | D17: 2022-02-02 | E17: E3 | F17: Cuisinière SIERA | G17: Electro | H17: 1 unité | I17: 150 | J17: 10 | K17: =listeAchats[[#This Row],[Coût d''achat]]*listeAchats[[#This Row],[Quantité]] -> 1500
C18: 46 | D18: 2022-01-01 | E18: E3 | F18: Cuisinière SIERA | G18: Electro | H18: 1 unité | I18: 150 | J18: 20 | K18: =listeAchats[[#This Row],[Coût d''achat]]*listeAchats[[#This Row],[Quantité]] -> 3000
C19: 45 | D19: 2022-05-09 | E19: E2 | F19: Réfrigérateur SIERA | G19: Electro | H19: 1 unité | I19: 300 | J19: 4 | K19: =listeAchats[[#This Row],[Coût d''achat]]*listeAchats[[#This Row],[Quantité]] -> 1200
C20: 44 | D20: 2022-04-04 | E20: E2 | F20: Réfrigérateur SIERA | G20: Electro | H20: 1 unité | I20: 300 | J20: 4 | K20: =listeAchats[[#This Row],[Coût d''achat]]*listeAchats[[#This Row],[Quantité]] -> 1200
C21: 43 | D21: 2022-03-06 | E21: E2 | F21: Réfrigérateur SIERA | G21: Electro | H21: 1 unité | I21: 300 | J21: 2 | K21: =listeAchats[[#This Row],[Coût d''achat]]*listeAchats[[#This Row],[Quantité]] -> 600
C22: 42 | D22: 2022-02-15 | E22: E2 | F22: Réfrigérateur SIERA | G22: Electro | H22: 1 unité | I22: 300 | J22: 10 | K22: =listeAchats[[#This Row],[Coût d''achat]]*listeAchats[[#This Row],[Quantité]] -> 3000
C23: 41 | D23: 2022-01-16 | E23: E2 | F23: Réfrigérateur SIERA | G23: Electro | H23: 1 unité | I23: 300 | J23: 20 | K23: =listeAchats[[#This Row],[Coût d''achat]]*listeAchats[[#This Row],[Quantité]] -> 6000
C24: 40 | D24: 2022-05-06 | E24: E1 | F24: Réfrigérateur WHIRLPOOL | G24: Electro | H24: 1 unité | I24: 700 | J24: 6 | K24: =listeAchats[[#This Row],[Coût d''achat]]*listeAchats[[#This Row],[Quantité]] -> 4200
C25: 39 | D25: 2022-04-06 | E25: E1 | F25: Réfrigérateur WHIRLPOOL | G25: Electro | H25: 1 unité | I25: 700 | J25: 2 | K25: =listeAchats[[#This Row],[Coût d''achat]]*listeAchats[[#This Row],[Quantité]] -> 1400
C26: 38 | D26: 2022-03-03 | E26: E1 | F26: Réfrigérateur WHIRLPOOL | G26: Electro | H26: 1 unité | I26: 700 | J26: 4 | K26: =listeAchats[[#This Row],[Coût d''achat]]*listeAchats[[#This Row],[Quantité]] -> 2800
C27: 37 | D27: 2022-02-03 | E27: E1 | F27: Réfrigérateur WHIRLPOOL | G27: Electro | H27: 1 unité | I27: 700 | J27: 3 | K27: =listeAchats[[#This Row],[Coût d''achat]]*listeAchats[[#This Row],[Quantité]] -> 2100
C28: 36 | D28: 2022-01-22 | E28: E1 | F28: Réfrigérateur WHIRLPOOL | G28: Electro | H28: 1 unité | I28: 700 | J28: 4 | K28: =listeAchats[[#This Row],[Coût d''achat]]*listeAchats[[#This Row],[Quantité]] -> 2800
C29: 35 | D29: 2022-05-22 | E29: C2 | F29: NINTENDO SWITCH | G29: Consoles | H29: 1 unité | I29: 405 | J29: 5 | K29: =listeAchats[[#This Row],[Coût d''achat]]*listeAchats[[#This Row],[Quantité]] -> 2025
C30: 34 | D30: 2022-04-05 | E30: C2 | F30: NINTENDO SWITCH | G30: Consoles | H30: 1 unité | I30: 410 | J30: 10 | K30: =listeAchats[[#This Row],[Coût d''achat]]*listeAchats[[#This Row],[Quantité]] -> 4100
C31: 33 | D31: 2022-03-05 | E31: C2 | F31: NINTENDO SWITCH | G31: Consoles | H31: 1 unité | I31: 420 | J31: 10 | K31: =listeAchats[[#This Row],[Coût d''achat]]*listeAchats[[#This Row],[Quantité]] -> 4200
C32: 32 | D32: 2022-02-10 | E32: C2 | F32: NINTENDO SWITCH | G32: Consoles | H32: 1 unité | I32: 400 | J32: 10 | K32: =listeAchats[[#This Row],[Coût d''achat]]*listeAchats[[#This Row],[Quantité]] -> 4000
C33: 31 | D33: 2022-01-02 | E33: C2 | F33: NINTENDO SWITCH | G33: Consoles | H33: 1 unité | I33: 400 | J33: 5 | K33: =listeAchats[[#This Row],[Coût d''achat]]*listeAchats[[#This Row],[Quantité]] -> 2000
C34: 30 | D34: 2022-05-08 | E34: C1 | F34: PLAYSTATION PS5 | G34: Consoles | H34: 1 unité | I34: 760 | J34: 20 | K34: =listeAchats[[#This Row],[Coût d''achat]]*listeAchats[[#This Row],[Quantité]] -> 15200
C35: 29 | D35: 2022-04-05 | E35: C1 | F35: PLAYSTATION PS5 | G35: Consoles | H35: 1 unité | I35: 750 | J35: 5 | K35: =listeAchats[[#This Row],[Coût d''achat]]*listeAchats[[#This Row],[Quantité]] -> 3750
C36: 28 | D36: 2022-03-03 | E36: C1 | F36: PLAYSTATION PS5 | G36: Consoles | H36: 1 unité | I36: 745 | J36: 10 | K36: =listeAchats[[#This Row],[Coût d''achat]]*listeAchats[[#This Row],[Quantité]] -> 7450
C37: 27 | D37: 2022-02-26 | E37: C1 | F37: PLAYSTATION PS5 | G37: Consoles | H37: 1 unité | I37: 750 | J37: 10 | K37: =listeAchats[[#This Row],[Coût d''achat]]*listeAchats[[#This Row],[Quantité]] -> 7500
C38: 26 | D38: 2022-01-02 | E38: C1 | F38: PLAYSTATION PS5 | G38: Consoles | H38: 1 unité | I38: 740 | J38: 5 | K38: =listeAchats[[#This Row],[Coût d''achat]]*listeAchats[[#This Row],[Quantité]] -> 3700
C39: 25 | D39: 2022-05-02 | E39: S2 | F39: IPHONE 13 PRO | G39: SmartPhone | H39: 1 unité | I39: 1400 | J39: 30 | K39: =listeAchats[[#This Row],[Coût d''achat]]*listeAchats[[#This Row],[Quantité]] -> 42000
C40: 24 | D40: 2022-04-25 | E40: S2 | F40: IPHONE 13 PRO | G40: SmartPhone | H40: 1 unité | I40: 1400 | J40: 20 | K40: =listeAchats[[#This Row],[Coût d''achat]]*listeAchats[[#This Row],[Quantité]] -> 28000
C41: =C42+1 -> 23 | D41: 2022-03-26 | E41: S2 | F41: IPHONE 13 PRO | G41: SmartPhone | H41: 1 unité | I41: 1400 | J41: 10 | K41: =listeAchats[[#This Row],[Coût d''achat]]*listeAchats[[#This Row],[Quantité]] -> 14000
C42: 22 | D42: 2022-02-02 | E42: S2 | F42: IPHONE 13 PRO | G42: SmartPhone | H42: 1 unité | I42: 1400 | J42: 6 | K42: =listeAchats[[#This Row],[Coût d''achat]]*listeAchats[[#This Row],[Quantité]] -> 8400
C43: 21 | D43: 2022-02-01 | E43: S2 | F43: IPHONE 13 PRO | G43: SmartPhone | H43: 1 unité | I43: 1400 | J43: 30 | K43: =listeAchats[[#This Row],[Coût d''achat]]*listeAchats[[#This Row],[Quantité]] -> 42000
C44: 20 | D44: 2022-05-08 | E44: S1 | F44: GOOGLE PIXEL 5 | G44: SmartPhone | H44: 1 unité | I44: 620 | J44: 3 | K44: =listeAchats[[#This Row],[Coût d''achat]]*listeAchats[[#This Row],[Quantité]] -> 1860
C45: 19 | D45: 2022-04-05 | E45: S1 | F45: GOOGLE PIXEL 5 | G45: SmartPhone | H45: 1 unité | I45: 600 | J45: 5 | K45: =listeAchats[[#This Row],[Coût d''achat]]*listeAchats[[#This Row],[Quantité]] -> 3000
C46: 18 | D46: 2022-03-03 | E46: S1 | F46: GOOGLE PIXEL 5 | G46: SmartPhone | H46: 1 unité | I46: 550 | J46: 2 | K46: =listeAchats[[#This Row],[Coût d''achat]]*listeAchats[[#This Row],[Quantité]] -> 1100
C47: 17 | D47: 2022-02-05 | E47: S1 | F47: GOOGLE PIXEL 5 | G47: SmartPhone | H47: 1 unité | I47: 600 | J47: 5 | K47: =listeAchats[[#This Row],[Coût d''achat]]*listeAchats[[#This Row],[Quantité]] -> 3000
C48: 16 | D48: 2022-01-20 | E48: S1 | F48: GOOGLE PIXEL 5 | G48: SmartPhone | H48: 1 unité | I48: 600 | J48: 40 | K48: =listeAchats[[#This Row],[Coût d''achat]]*listeAchats[[#This Row],[Quantité]] -> 24000
C49: 15 | D49: 2022-05-08 | E49: B3 | F49: Oreo | G49: Biscuits | H49: Pack de 20 unités | I49: 4 | J49: 250 | K49: =listeAchats[[#This Row],[Coût d''achat]]*listeAchats[[#This Row],[Quantité]] -> 1000
C50: 14 | D50: 2022-04-25 | E50: B3 | F50: Oreo | G50: Biscuits | H50: Pack de 20 unités | I50: 4 | J50: 30 | K50: =listeAchats[[#This Row],[Coût d''achat]]*listeAchats[[#This Row],[Quantité]] -> 120
C51: 13 | D51: 2022-03-20 | E51: B3 | F51: Oreo | G51: Biscuits | H51: Pack de 20 unités | I51: 4 | J51: 20 | K51: =listeAchats[[#This Row],[Coût d''achat]]*listeAchats[[#This Row],[Quantité]] -> 80
C52: 12 | D52: 2022-02-05 | E52: B3 | F52: Oreo | G52: Biscuits | H52: Pack de 20 unités | I52: 4 | J52: 10 | K52: =listeAchats[[#This Row],[Coût d''achat]]*listeAchats[[#This Row],[Quantité]] -> 40
C53: 11 | D53: 2022-05-05 | E53: B2 | F53: Oreo | G53: Biscuits | H53: Pack de 10 unités | I53: 2 | J53: 50 | K53: =listeAchats[[#This Row],[Coût d''achat]]*listeAchats[[#This Row],[Quantité]] -> 100
C54: 10 | D54: 2022-04-05 | E54: B2 | F54: Oreo | G54: Biscuits | H54: Pack de 10 unités | I54: 2 | J54: 5 | K54: =listeAchats[[#This Row],[Coût d''achat]]*listeAchats[[#This Row],[Quantité]] -> 10
C55: 9 | D55: 2022-03-02 | E55: B2 | F55: Oreo | G55: Biscuits | H55: Pack de 10 unités | I55: 2 | J55: 4 | K55: =listeAchats[[#This Row],[Coût d''achat]]*listeAchats[[#This Row],[Quantité]] -> 8
C56: 8 | D56: 2022-02-25 | E56: B2 | F56: Oreo | G56: Biscuits | H56: Pack de 10 unités | I56: 2 | J56: 60 | K56: =listeAchats[[#This Row],[Coût d''achat]]*listeAchats[[#This Row],[Quantité]] -> 120
C57: 7 | D57: 2022-05-05 | E57: B1 | F57: Oreo | G57: Biscuits | H57: 1 unité | I57: 0.24 | J57: 10 | K57: =listeAchats[[#This Row],[Coût d''achat]]*listeAchats[[#This Row],[Quantité]] -> 2.4
C58: 6 | D58: 2022-04-03 | E58: B1 | F58: Oreo | G58: Biscuits | H58: 1 unité | I58: 0.23 | J58: 5 | K58: =listeAchats[[#This Row],[Coût d''achat]]*listeAchats[[#This Row],[Quantité]] -> 1.15
C59: 5 | D59: 2022-03-20 | E59: B1 | F59: Oreo | G59: Biscuits | H59: 1 unité | I59: 0.2 | J59: 50 | K59: =listeAchats[[#This Row],[Coût d''achat]]*listeAchats[[#This Row],[Quantité]] -> 10
C60: 4 | D60: 2022-02-02 | E60: B1 | F60: Oreo | G60: Biscuits | H60: 1 unité | I60: 0.22 | J60: 20 | K60: =listeAchats[[#This Row],[Coût d''achat]]*listeAchats[[#This Row],[Quantité]] -> 4.4
C61: 3 | D61: 2022-01-25 | E61: B1 | F61: Oreo | G61: Biscuits | H61: 1 unité | I61: 0.2 | J61: 10 | K61: =listeAchats[[#This Row],[Coût d''achat]]*listeAchats[[#This Row],[Quantité]] -> 2
C62: 2 | D62: 2022-01-05 | E62: B2 | F62: Oreo | G62: Biscuits | H62: Pack de 10 unités | I62: 2 | J62: 3 | K62: =listeAchats[[#This Row],[Coût d''achat]]*listeAchats[[#This Row],[Quantité]] -> 6
C63: 1 | D63: 2022-01-02 | E63: B3 | F63: Oreo | G63: Biscuits | H63: Pack de 20 unités | I63: 4 | J63: 10 | K63: =listeAchats[[#This Row],[Coût d''achat]]*listeAchats[[#This Row],[Quantité]] -> 40

Sheet Sorties
C3: Liste des sorties :
C4: Détails de toutes les transactions de sortie
C6: Numéro | D6: Date | E6: Référence | F6: Désignation | G6: Catégorie | H6: Unité | I6: Prix de vente | J6: Quantité | K6: Total
C7: =C8+1 -> 60 | D7: 2022-05-17 | E7: B2 | F7: Oreo | G7: Biscuits | H7: Pack de 10 unités | I7: 2.5 | J7: 10 | K7: =listeVentes[[#This Row],[Prix de vente]]*listeVentes[[#This Row],[Quantité]] -> 25
C8: =C9+1 -> 59 | D8: 2022-05-17 | E8: E1 | F8: Réfrigérateur WHIRLPOOL | G8: Electro | H8: 1 unité | I8: 800 | J8: 3 | K8: =listeVentes[[#This Row],[Prix de vente]]*listeVentes[[#This Row],[Quantité]] -> 2400
C9: =C10+1 -> 58 | D9: 2022-04-19 | E9: S1 | F9: GOOGLE PIXEL 5 | G9: SmartPhone | H9: 1 unité | I9: 650 | J9: 2 | K9: =listeVentes[[#This Row],[Prix de vente]]*listeVentes[[#This Row],[Quantité]] -> 1300
C10: =C11+1 -> 57 | D10: 2022-04-11 | E10: B1 | F10: Oreo | G10: Biscuits | H10: 1 unité | I10: 0.2 | J10: 20 | K10: =listeVentes[[#This Row],[Prix de vente]]*listeVentes[[#This Row],[Quantité]] -> 4
C11: 56 | D11: 2022-05-06 | E11: E4 | F11: Cuisinière CANDY | G11: Electro | H11: 1 unité | I11: 600 | J11: 10 | K11: =listeVentes[[#This Row],[Prix de vente]]*listeVentes[[#This Row],[Quantité]] -> 6000
C12: 55 | D12: 2022-04-04 | E12: E4 | F12: Cuisinière CANDY | G12: Electro | H12: 1 unité | I12: 590 | J12: 20 | K12: =listeVentes[[#This Row],[Prix de vente]]*listeVentes[[#This Row],[Quantité]] -> 11800
C13: 54 | D13: 2022-03-03 | E13: E4 | F13: Cuisinière CANDY | G13: Electro | H13: 1 unité | I13: 580 | J13: 20 | K13: =listeVentes[[#This Row],[Prix de vente]]*listeVentes[[#This Row],[Quantité]] -> 11600
C14: 53 | D14: 2022-02-06 | E14: E4 | F14: Cuisinière CANDY | G14: Electro | H14: 1 unité | I14: 600 | J14: 5 | K14: =listeVentes[[#This Row],[Prix de vente]]*listeVentes[[#This Row],[Quantité]] -> 3000
C15: 52 | D15: 2022-01-01 | E15: E4 | F15: Cuisinière CANDY | G15: Electro | H15: 1 unité | I15: 600 | J15: 5 | K15: =listeVentes[[#This Row],[Prix de vente]]*listeVentes[[#This Row],[Quantité]] -> 3000
C16: 51 | D16: 2022-05-05 | E16: E3 | F16: Cuisinière SIERA | G16: Electro | H16: 1 unité | I16: 220 | J16: 3 | K16: =listeVentes[[#This Row],[Prix de vente]]*listeVentes[[#This Row],[Quantité]] -> 660
C17: 50 | D17: 2022-04-04 | E17: E3 | F17: Cuisinière SIERA | G17: Electro | H17: 1 unité | I17: 200 | J17: 5 | K17: =listeVentes[[#This Row],[Prix de vente]]*listeVentes[[#This Row],[Quantité]] -> 1000
C18: 49 | D18: 2022-03-05 | E18: E3 | F18: Cuisinière SIERA | G18: Electro | H18: 1 unité | I18: 250 | J18: 10 | K18: =listeVentes[[#This Row],[Prix de vente]]*listeVentes[[#This Row],[Quantité]] -> 2500
C19: 48 | D19: 2022-02-05 | E19: E3 | F19: Cuisinière SIERA | G19: Electro | H19: 1 unité | I19: 200 | J19: 5 | K19: =listeVentes[[#This Row],[Prix de vente]]*listeVentes[[#This Row],[Quantité]] -> 1000
C20: 47 | D20: 2022-01-01 | E20: E3 | F20: Cuisinière SIERA | G20: Electro | H20: 1 unité | I20: 200 | J20: 5 | K20: =listeVentes[[#This Row],[Prix de vente]]*listeVentes[[#This Row],[Quantité]] -> 1000
C21: 46 | D21: 2022-05-04 | E21: E2 | F21: Réfrigérateur SIERA | G21: Electro | H21: 1 unité | I21: 400 | J21: 2 | K21: =listeVentes[[#This Row],[Prix de vente]]*listeVentes[[#This Row],[Quantité]] -> 800
C22: 45 | D22: 2022-04-04 | E22: E2 | F22: Réfrigérateur SIERA | G22: Electro | H22: 1 unité | I22: 400 | J22: 7 | K22: =listeVentes[[#This Row],[Prix de vente]]*listeVentes[[#This Row],[Quantité]] -> 2800
C23: 44 | D23: 2022-03-04 | E23: E2 | F23: Réfrigérateur SIERA | G23: Electro | H23: 1 unité | I23: 400 | J23: 5 | K23: =listeVentes[[#This Row],[Prix de vente]]*listeVentes[[#This Row],[Quantité]] -> 2000
C24: 43 | D24: 2022-02-20 | E24: E2 | F24: Réfrigérateur SIERA | G24: Electro | H24: 1 unité | I24: 400 | J24: 5 | K24: =listeVentes[[#This Row],[Prix de vente]]*listeVentes[[#This Row],[Quantité]] -> 2000
C25: 42 | D25: 2022-01-02 | E25: E2 | F25: Réfrigérateur SIERA | G25: Electro | H25: 1 unité | I25: 400 | J25: 5 | K25: =listeVentes[[#This Row],[Prix de vente]]*listeVentes[[#This Row],[Quantité]] -> 2000
C26: 41 | D26: 2022-05-15 | E26: E1 | F26: Réfrigérateur WHIRLPOOL | G26: Electro | H26: 1 unité | I26: 800 | J26: 2 | K26: =listeVentes[[#This Row],[Prix de vente]]*listeVentes[[#This Row],[Quantité]] -> 1600
C27: 40 | D27: 2022-04-04 | E27: E1 | F27: Réfrigérateur WHIRLPOOL | G27: Electro | H27: 1 unité | I27: 800 | J27: 2 | K27: =listeVentes[[#This Row],[Prix de vente]]*listeVentes[[#This Row],[Quantité]] -> 1600
C28: 39 | D28: 2022-03-26 | E28: E1 | F28: Réfrigérateur WHIRLPOOL | G28: Electro | H28: 1 unité | I28: 800 | J28: 6 | K28: =listeVentes[[#This Row],[Prix de vente]]*listeVentes[[#This Row],[Quantité]] -> 4800
C29: 38 | D29: 2022-02-06 | E29: E1 | F29: Réfrigérateur WHIRLPOOL | G29: Electro | H29: 1 unité | I29: 800 | J29: 6 | K29: =listeVentes[[#This Row],[Prix de vente]]*listeVentes[[#This Row],[Quantité]] -> 4800
C30: 37 | D30: 2022-01-02 | E30: E1 | F30: Réfrigérateur WHIRLPOOL | G30: Electro | H30: 1 unité | I30: 800 | J30: 2 | K30: =listeVentes[[#This Row],[Prix de vente]]*listeVentes[[#This Row],[Quantité]] -> 1600
C31: 36 | D31: 2022-05-05 | E31: C2 | F31: NINTENDO SWITCH | G31: Consoles | H31: 1 unité | I31: 550 | J31: 2 | K31: =listeVentes[[#This Row],[Prix de vente]]*listeVentes[[#This Row],[Quantité]] -> 1100
C32: 35 | D32: 2022-04-04 | E32: C2 | F32: NINTENDO SWITCH | G32: Consoles | H32: 1 unité | I32: 550 | J32: 10 | K32: =listeVentes[[#This Row],[Prix de vente]]*listeVentes[[#This Row],[Quantité]] -> 5500
C33: 34 | D33: 2022-03-05 | E33: C2 | F33: NINTENDO SWITCH | G33: Consoles | H33: 1 unité | I33: 520 | J33: 6 | K33: =listeVentes[[#This Row],[Prix de vente]]*listeVentes[[#This Row],[Quantité]] -> 3120
C34: 33 | D34: 2022-02-09 | E34: C2 | F34: NINTENDO SWITCH | G34: Consoles | H34: 1 unité | I34: 600 | J34: 20 | K34: =listeVentes[[#This Row],[Prix de vente]]*listeVentes[[#This Row],[Quantité]] -> 12000
C35: 32 | D35: 2022-01-06 | E35: C2 | F35: NINTENDO SWITCH | G35: Consoles | H35: 1 unité | I35: 550 | J35: 6 | K35: =listeVentes[[#This Row],[Prix de vente]]*listeVentes[[#This Row],[Quantité]] -> 3300
C36: 31 | D36: 2022-05-03 | E36: C1 | F36: PLAYSTATION PS5 | G36: Consoles | H36: 1 unité | I36: 800 | J36: 10 | K36: =listeVentes[[#This Row],[Prix de vente]]*listeVentes[[#This Row],[Quantité]] -> 8000
C37: 30 | D37: 2022-04-21 | E37: C1 | F37: PLAYSTATION PS5 | G37: Consoles | H37: 1 unité | I37: 800 | J37: 5 | K37: =listeVentes[[#This Row],[Prix de vente]]*listeVentes[[#This Row],[Quantité]] -> 4000
C38: 29 | D38: 2022-03-06 | E38: C1 | F38: PLAYSTATION PS5 | G38: Consoles | H38: 1 unité | I38: 820 | J38: 10 | K38: =listeVentes[[#This Row],[Prix de vente]]*listeVentes[[#This Row],[Quantité]] -> 8200
C39: 28 | D39: 2022-02-05 | E39: C1 | F39: PLAYSTATION PS5 | G39: Consoles | H39: 1 unité | I39: 820 | J39: 5 | K39: =listeVentes[[#This Row],[Prix de vente]]*listeVentes[[#This Row],[Quantité]] -> 4100
C40: 27 | D40: 2022-01-02 | E40: C1 | F40: PLAYSTATION PS5 | G40: Consoles | H40: 1 unité | I40: 800 | J40: 10 | K40: =listeVentes[[#This Row],[Prix de vente]]*listeVentes[[#This Row],[Quantité]] -> 8000
C41: 26 | D41: 2022-05-06 | E41: S2 | F41: IPHONE 13 PRO | G41: SmartPhone | H41: 1 unité | I41: 1500 | J41: 12 | K41: =listeVentes[[#This Row],[Prix de vente]]*listeVentes[[#This Row],[Quantité]] -> 18000
C42: =C43+1 -> 25 | D42: 2022-04-04 | E42: S2 | F42: IPHONE 13 PRO | G42: SmartPhone | H42: 1 unité | I42: 1500 | J42: 30 | K42: =listeVentes[[#This Row],[Prix de vente]]*listeVentes[[#This Row],[Quantité]] -> 45000
C43: 24 | D43: 2022-03-06 | E43: S2 | F43: IPHONE 13 PRO | G43: SmartPhone | H43: 1 unité | I43: 1500 | J43: 15 | K43: =listeVentes[[#This Row],[Prix de vente]]*listeVentes[[#This Row],[Quantité]] -> 22500
C44: 23 | D44: 2022-02-02 | E44: S2 | F44: IPHONE 13 PRO | G44: SmartPhone | H44: 1 unité | I44: 1500 | J44: 20 | K44: =listeVentes[[#This Row],[Prix de vente]]*listeVentes[[#This Row],[Quantité]] -> 30000
C45: 22 | D45: 2022-01-02 | E45: S2 | F45: IPHONE 13 PRO | G45: SmartPhone | H45: 1 unité | I45: 1400 | J45: 10 | K45: =listeVentes[[#This Row],[Prix de vente]]*listeVentes[[#This Row],[Quantité]] -> 14000
C46: 21 | D46: 2022-05-06 | E46: S1 | F46: GOOGLE PIXEL 5 | G46: SmartPhone | H46: 1 unité | I46: 720 | J46: 23 | K46: =listeVentes[[#This Row],[Prix de vente]]*listeVentes[[#This Row],[Quantité]] -> 16560
C47: 20 | D47: 2022-04-09 | E47: S1 | F47: GOOGLE PIXEL 5 | G47: SmartPhone | H47: 1 unité | I47: 680 | J47: 2 | K47: =listeVentes[[#This Row],[Prix de vente]]*listeVentes[[#This Row],[Quantité]] -> 1360
C48: 19 | D48: 2022-03-06 | E48: S1 | F48: GOOGLE PIXEL 5 | G48: SmartPhone | H48: 1 unité | I48: 700 | J48: 20 | K48: =listeVentes[[#This Row],[Prix de vente]]*listeVentes[[#This Row],[Quantité]] -> 14000
C49: 18 | D49: 2022-02-22 | E49: S1 | F49: GOOGLE PIXEL 5 | G49: SmartPhone | H49: 1 unité | I49: 670 | J49: 5 | K49: =listeVentes[[#This Row],[Prix de vente]]*listeVentes[[#This Row],[Quantité]] -> 3350
C50: 17 | D50: 2022-01-26 | E50: S1 | F50: GOOGLE PIXEL 5 | G50: SmartPhone | H50: 1 unité | I50: 680 | J50: 8 | K50: =listeVentes[[#This Row],[Prix de vente]]*listeVentes[[#This Row],[Quantité]] -> 5440
C51: 16 | D51: 2022-04-22 | E51: B3 | F51: Oreo | G51: Biscuits | H51: Pack de 20 unités | I51: 4.6 | J51: 60 | K51: =listeVentes[[#This Row],[Prix de vente]]*listeVentes[[#This Row],[Quantité]] -> 276
C52: 15 | D52: 2022-04-01 | E52: B3 | F52: Oreo | G52: Biscuits | H52: Pack de 20 unités | I52: 5 | J52: 60 | K52: =listeVentes[[#This Row],[Prix de vente]]*listeVentes[[#This Row],[Quantité]] -> 300
C53: 14 | D53: 2022-03-09 | E53: B3 | F53: Oreo | G53: Biscuits | H53: Pack de 20 unités | I53: 5 | J53: 60 | K53: =listeVentes[[#This Row],[Prix de vente]]*listeVentes[[#This Row],[Quantité]] -> 300
C54: 13 | D54: 2022-02-06 | E54: B3 | F54: Oreo | G54: Biscuits | H54: Pack de 20 unités | I54: 5 | J54: 12 | K54: =listeVentes[[#This Row],[Prix de vente]]*listeVentes[[#This Row],[Quantité]] -> 60
C55: 12 | D55: 2022-05-08 | E55: B2 | F55: Oreo | G55: Biscuits | H55: Pack de 10 unités | I55: 3 | J55: 10 | K55: =listeVentes[[#This Row],[Prix de vente]]*listeVentes[[#This Row],[Quantité]] -> 30
C56: 11 | D56: 2022-04-05 | E56: B2 | F56: Oreo | G56: Biscuits | H56: Pack de 10 unités | I56: 2.7 | J56: 15 | K56: =listeVentes[[#This Row],[Prix de vente]]*listeVentes[[#This Row],[Quantité]] -> 40.5
C57: 10 | D57: 2022-03-03 | E57: B2 | F57: Oreo | G57: Biscuits | H57: Pack de 10 unités | I57: 2.6 | J57: 15 | K57: =listeVentes[[#This Row],[Prix de vente]]*listeVentes[[#This Row],[Quantité]] -> 39
C58: 9 | D58: 2022-02-03 | E58: B2 | F58: Oreo | G58: Biscuits | H58: Pack de 10 unités | I58: 2.5 | J58: 2 | K58: =listeVentes[[#This Row],[Prix de vente]]*listeVentes[[#This Row],[Quantité]] -> 5
C59: 8 | D59: 2022-05-22 | E59: B1 | F59: Oreo | G59: Biscuits | H59: 1 unité | I59: 0.3 | J59: 4 | K59: =listeVentes[[#This Row],[Prix de vente]]*listeVentes[[#This Row],[Quantité]] -> 1.2
C60: 7 | D60: 2022-04-04 | E60: B1 | F60: Oreo | G60: Biscuits | H60: 1 unité | I60: 0.3 | J60: 15 | K60: =listeVentes[[#This Row],[Prix de vente]]*listeVentes[[#This Row],[Quantité]] -> 4.5
C61: 6 | D61: 2022-03-06 | E61: B1 | F61: Oreo | G61: Biscuits | H61: 1 unité | I61: 0.3 | J61: 20 | K61: =listeVentes[[#This Row],[Prix de vente]]*listeVentes[[#This Row],[Quantité]] -> 6
C62: 5 | D62: 2022-02-05 | E62: B1 | F62: Oreo | G62: Biscuits | H62: 1 unité | I62: 0.3 | J62: 15 | K62: =listeVentes[[#This Row],[Prix de vente]]*listeVentes[[#This Row],[Quantité]] -> 4.5
C63: 4 | D63: 2022-01-23 | E63: B2 | F63: Oreo | G63: Biscuits | H63: Pack de 10 unités | I63: 3 | J63: 6 | K63: =listeVentes[[#This Row],[Prix de vente]]*listeVentes[[#This Row],[Quantité]] -> 18
C64: 3 | D64: 2022-01-21 | E64: B1 | F64: Oreo | G64: Biscuits | H64: 1 unité | I64: 0.3 | J64: 5 | K64: =listeVentes[[#This Row],[Prix de vente]]*listeVentes[[#This Row],[Quantité]] -> 1.5
C65: 2 | D65: 2022-01-17 | E65: B2 | F65: Oreo | G65: Biscuits | H65: Pack de 10 unités | I65: 2.2 | J65: 6 | K65: =listeVentes[[#This Row],[Prix de vente]]*listeVentes[[#This Row],[Quantité]] -> 13.2
C66: 1 | D66: 2022-01-10 | E66: B3 | F66: Oreo | G66: Biscuits | H66: Pack de 20 unités | I66: 4.2 | J66: 3 | K66: =listeVentes[[#This Row],[Prix de vente]]*listeVentes[[#This Row],[Quantité]] -> 12.6

Sheet Inventaire
C3: Détails d'inventaire
C5: Référence | D5: Désignation | E5: Catégorie | F5: Unité | G5: Seuil d'alerte | H5: Stock initial | I5: Entrées | J5: Sorties | K5: Stock final | L5: CUMP | M5: Valeur | N5: Statue
C6: S1 | D6: =IFERROR(VLOOKUP(listeInventaire[[#This Row],[Référence]],listeProduits[],2,FALSE),"") -> GOOGLE PIXEL 5 | E6: =IFERROR(VLOOKUP(listeInventaire[[#This Row],[Référence]],listeProduits[],3,FALSE),"") -> SmartPhone | F6: =IFERROR(VLOOKUP(listeInventaire[[#This Row],[Référence]],listeProduits[],4,FALSE),"") -> 1 unité | G6: =IFERROR(VLOOKUP(listeInventaire[[#This Row],[Référence]],listeProduits[],5,FALSE),"") -> 10 | H6: =IFERROR(VLOOKUP(listeInventaire[[#This Row],[Référence]],listeProduits[],6,FALSE),"") -> 20 | I6: =SUMIF(listeAchats[Référence],listeInventaire[[#This Row],[Référence]],listeAchats[Quantité]) -> 55 | J6: =SUMIF(listeVentes[Référence],listeInventaire[[#This Row],[Référence]],listeVentes[Quantité]) -> 60 | K6: =IFERROR(listeInventaire[[#This Row],[Stock initial]]+listeInventaire[[#This Row],[Entrées]]-listeInventaire[[#This Row],[Sorties]],"") -> 15 | L6: =IFERROR((VLOOKUP(listeInventaire[[#This Row],[Référence]],listeProduits[],8,FALSE)+SUMIF(listeAchats[Référence],listeInventaire[[#This Row],[Référence]],listeAchats[Total]))/(VLOOKUP(listeInventaire[[#This Row],[Référence]],listeProduits[],6,FALSE)+SUMIF(listeAchats[Référence],listeInventaire[[#This Row],[Référence]],listeAchats[Quantité])),"") -> 599.4666667 | M6: =IFERROR(listeInventaire[[#This Row],[Stock final]]*listeInventaire[[#This Row],[CUMP]],"") -> 8992 | N6: =IF(listeInventaire[[#This Row],[Stock final]]>listeInventaire[[#This Row],[Seuil d''alerte]],"Stock normal",IF(listeInventaire[[#This Row],[Stock final]]=0,"Non disponible","Stock faible")) -> Stock normal
C7: S2 | D7: =IFERROR(VLOOKUP(listeInventaire[[#This Row],[Référence]],listeProduits[],2,FALSE),"") -> IPHONE 13 PRO | E7: =IFERROR(VLOOKUP(listeInventaire[[#This Row],[Référence]],listeProduits[],3,FALSE),"") -> SmartPhone | F7: =IFERROR(VLOOKUP(listeInventaire[[#This Row],[Référence]],listeProduits[],4,FALSE),"") -> 1 unité | G7: =IFERROR(VLOOKUP(listeInventaire[[#This Row],[Référence]],listeProduits[],5,FALSE),"") -> 10 | H7: =IFERROR(VLOOKUP(listeInventaire[[#This Row],[Référence]],listeProduits[],6,FALSE),"") -> 3 | I7: =SUMIF(listeAchats[Référence],listeInventaire[[#This Row],[Référence]],listeAchats[Quantité]) -> 96 | J7: =SUMIF(listeVentes[Référence],listeInventaire[[#This Row],[Référence]],listeVentes[Quantité]) -> 87 | K7: =IFERROR(listeInventaire[[#This Row],[Stock initial]]+listeInventaire[[#This Row],[Entrées]]-listeInventaire[[#This Row],[Sorties]],"") -> 12 | L7: =IFERROR((VLOOKUP(listeInventaire[[#This Row],[Référence]],listeProduits[],8,FALSE)+SUMIF(listeAchats[Référence],listeInventaire[[#This Row],[Référence]],listeAchats[Total]))/(VLOOKUP(listeInventaire[[#This Row],[Référence]],listeProduits[],6,FALSE)+SUMIF(listeAchats[Référence],listeInventaire[[#This Row],[Référence]],listeAchats[Quantité])),"") -> 1400 | M7: =IFERROR(listeInventaire[[#This Row],[Stock final]]*listeInventaire[[#This Row],[CUMP]],"") -> 16800 | N7: =IF(listeInventaire[[#This Row],[Stock final]]>listeInventaire[[#This Row],[Seuil d''alerte]],"Stock normal",IF(listeInventaire[[#This Row],[Stock final]]=0,"Non disponible","Stock faible")) -> Stock normal
C8: B1 | D8: =IFERROR(VLOOKUP(listeInventaire[[#This Row],[Référence]],listeProduits[],2,FALSE),"") -> Oreo | E8: =IFERROR(VLOOKUP(listeInventaire[[#This Row],[Référence]],listeProduits[],3,FALSE),"") -> Biscuits | F8: =IFERROR(VLOOKUP(listeInventaire[[#This Row],[Référence]],listeProduits[],4,FALSE),"") -> 1 unité | G8: =IFERROR(VLOOKUP(listeInventaire[[#This Row],[Référence]],listeProduits[],5,FALSE),"") -> 10 | H8: =IFERROR(VLOOKUP(listeInventaire[[#This Row],[Référence]],listeProduits[],6,FALSE),"") -> 10 | I8: =SUMIF(listeAchats[Référence],listeInventaire[[#This Row],[Référence]],listeAchats[Quantité]) -> 95 | J8: =SUMIF(listeVentes[Référence],listeInventaire[[#This Row],[Référence]],listeVentes[Quantité]) -> 79 | K8: =IFERROR(listeInventaire[[#This Row],[Stock initial]]+listeInventaire[[#This Row],[Entrées]]-listeInventaire[[#This Row],[Sorties]],"") -> 26 | L8: =IFERROR((VLOOKUP(listeInventaire[[#This Row],[Référence]],listeProduits[],8,FALSE)+SUMIF(listeAchats[Référence],listeInventaire[[#This Row],[Référence]],listeAchats[Total]))/(VLOOKUP(listeInventaire[[#This Row],[Référence]],listeProduits[],6,FALSE)+SUMIF(listeAchats[Référence],listeInventaire[[#This Row],[Référence]],listeAchats[Quantité])),"") -> 0.209047619 | M8: =IFERROR(listeInventaire[[#This Row],[Stock final]]*listeInventaire[[#This Row],[CUMP]],"") -> 5.435238095 | N8: =IF(listeInventaire[[#This Row],[Stock final]]>listeInventaire[[#This Row],[Seuil d''alerte]],"Stock normal",IF(listeInventaire[[#This Row],[Stock final]]=0,"Non disponible","Stock faible")) -> Stock normal
C9: B2 | D9: =IFERROR(VLOOKUP(listeInventaire[[#This Row],[Référence]],listeProduits[],2,FALSE),"") -> Oreo | E9: =IFERROR(VLOOKUP(listeInventaire[[#This Row],[Référence]],listeProduits[],3,FALSE),"") -> Biscuits | F9: =IFERROR(VLOOKUP(listeInventaire[[#This Row],[Référence]],listeProduits[],4,FALSE),"") -> Pack de 10 unités | G9: =IFERROR(VLOOKUP(listeInventaire[[#This Row],[Référence]],listeProduits[],5,FALSE),"") -> 50 | H9: =IFERROR(VLOOKUP(listeInventaire[[#This Row],[Référence]],listeProduits[],6,FALSE),"") -> 15 | I9: =SUMIF(listeAchats[Référence],listeInventaire[[#This Row],[Référence]],listeAchats[Quantité]) -> 147 | J9: =SUMIF(listeVentes[Référence],listeInventaire[[#This Row],[Référence]],listeVentes[Quantité]) -> 64 | K9: =IFERROR(listeInventaire[[#This Row],[Stock initial]]+listeInventaire[[#This Row],[Entrées]]-listeInventaire[[#This Row],[Sorties]],"") -> 98 | L9: =IFERROR((VLOOKUP(listeInventaire[[#This Row],[Référence]],listeProduits[],8,FALSE)+SUMIF(listeAchats[Référence],listeInventaire[[#This Row],[Référence]],listeAchats[Total]))/(VLOOKUP(listeInventaire[[#This Row],[Référence]],listeProduits[],6,FALSE)+SUMIF(listeAchats[Référence],listeInventaire[[#This Row],[Référence]],listeAchats[Quantité])),"") -> 387.4938272 | M9: =IFERROR(listeInventaire[[#This Row],[Stock final]]*listeInventaire[[#This Row],[CUMP]],"") -> 37974.39506 | N9: =IF(listeInventaire[[#This Row],[Stock final]]>listeInventaire[[#This Row],[Seuil d''alerte]],"Stock normal",IF(listeInventaire[[#This Row],[Stock final]]=0,"Non disponible","Stock faible")) -> Stock normal
C10: B3 | D10: =IFERROR(VLOOKUP(listeInventaire[[#This Row],[Référence]],listeProduits[],2,FALSE),"") -> Oreo | E10: =IFERROR(VLOOKUP(listeInventaire[[#This Row],[Référence]],listeProduits[],3,FALSE),"") -> Biscuits | F10: =IFERROR(VLOOKUP(listeInventaire[[#This Row],[Référence]],listeProduits[],4,FALSE),"") -> Pack de 20 unités | G10: =IFERROR(VLOOKUP(listeInventaire[[#This Row],[Référence]],listeProduits[],5,FALSE),"") -> 20 | H10: =IFERROR(VLOOKUP(listeInventaire[[#This Row],[Référence]],listeProduits[],6,FALSE),"") -> 5 | I10: =SUMIF(listeAchats[Référence],listeInventaire[[#This Row],[Référence]],listeAchats[Quantité]) -> 320 | J10: =SUMIF(listeVentes[Référence],listeInventaire[[#This Row],[Référence]],listeVentes[Quantité]) -> 195 | K10: =IFERROR(listeInventaire[[#This Row],[Stock initial]]+listeInventaire[[#This Row],[Entrées]]-listeInventaire[[#This Row],[Sorties]],"") -> 130 | L10: =IFERROR((VLOOKUP(listeInventaire[[#This Row],[Référence]],listeProduits[],8,FALSE)+SUMIF(listeAchats[Référence],listeInventaire[[#This Row],[Référence]],listeAchats[Total]))/(VLOOKUP(listeInventaire[[#This Row],[Référence]],listeProduits[],6,FALSE)+SUMIF(listeAchats[Référence],listeInventaire[[#This Row],[Référence]],listeAchats[Quantité])),"") -> 4 | M10: =IFERROR(listeInventaire[[#This Row],[Stock final]]*listeInventaire[[#This Row],[CUMP]],"") -> 520 | N10: =IF(listeInventaire[[#This Row],[Stock final]]>listeInventaire[[#This Row],[Seuil d''alerte]],"Stock normal",IF(listeInventaire[[#This Row],[Stock final]]=0,"Non disponible","Stock faible")) -> Stock normal
C11: E1 | D11: =IFERROR(VLOOKUP(listeInventaire[[#This Row],[Référence]],listeProduits[],2,FALSE),"") -> Réfrigérateur WHIRLPOOL | E11: =IFERROR(VLOOKUP(listeInventaire[[#This Row],[Référence]],listeProduits[],3,FALSE),"") -> Electro | F11: =IFERROR(VLOOKUP(listeInventaire[[#This Row],[Référence]],listeProduits[],4,FALSE),"") -> 1 unité | G11: =IFERROR(VLOOKUP(listeInventaire[[#This Row],[Référence]],listeProduits[],5,FALSE),"") -> 10 | H11: =IFERROR(VLOOKUP(listeInventaire[[#This Row],[Référence]],listeProduits[],6,FALSE),"") -> 5 | I11: =SUMIF(listeAchats[Référence],listeInventaire[[#This Row],[Référence]],listeAchats[Quantité]) -> 24 | J11: =SUMIF(listeVentes[Référence],listeInventaire[[#This Row],[Référence]],listeVentes[Quantité]) -> 21 | K11: =IFERROR(listeInventaire[[#This Row],[Stock initial]]+listeInventaire[[#This Row],[Entrées]]-listeInventaire[[#This Row],[Sorties]],"") -> 8 | L11: =IFERROR((VLOOKUP(listeInventaire[[#This Row],[Référence]],listeProduits[],8,FALSE)+SUMIF(listeAchats[Référence],listeInventaire[[#This Row],[Référence]],listeAchats[Total]))/(VLOOKUP(listeInventaire[[#This Row],[Référence]],listeProduits[],6,FALSE)+SUMIF(listeAchats[Référence],listeInventaire[[#This Row],[Référence]],listeAchats[Quantité])),"") -> 700 | M11: =IFERROR(listeInventaire[[#This Row],[Stock final]]*listeInventaire[[#This Row],[CUMP]],"") -> 5600 | N11: =IF(listeInventaire[[#This Row],[Stock final]]>listeInventaire[[#This Row],[Seuil d''alerte]],"Stock normal",IF(listeInventaire[[#This Row],[Stock final]]=0,"Non disponible","Stock faible")) -> Stock faible
C12: E2 | D12: =IFERROR(VLOOKUP(listeInventaire[[#This Row],[Référence]],listeProduits[],2,FALSE),"") -> Réfrigérateur SIERA | E12: =IFERROR(VLOOKUP(listeInventaire[[#This Row],[Référence]],listeProduits[],3,FALSE),"") -> Electro | F12: =IFERROR(VLOOKUP(listeInventaire[[#This Row],[Référence]],listeProduits[],4,FALSE),"") -> 1 unité | G12: =IFERROR(VLOOKUP(listeInventaire[[#This Row],[Référence]],listeProduits[],5,FALSE),"") -> 10 | H12: =IFERROR(VLOOKUP(listeInventaire[[#This Row],[Référence]],listeProduits[],6,FALSE),"") -> 3 | I12: =SUMIF(listeAchats[Référence],listeInventaire[[#This Row],[Référence]],listeAchats[Quantité]) -> 40 | J12: =SUMIF(listeVentes[Référence],listeInventaire[[#This Row],[Référence]],listeVentes[Quantité]) -> 24 | K12: =IFERROR(listeInventaire[[#This Row],[Stock initial]]+listeInventaire[[#This Row],[Entrées]]-listeInventaire[[#This Row],[Sorties]],"") -> 19 | L12: =IFERROR((VLOOKUP(listeInventaire[[#This Row],[Référence]],listeProduits[],8,FALSE)+SUMIF(listeAchats[Référence],listeInventaire[[#This Row],[Référence]],listeAchats[Total]))/(VLOOKUP(listeInventaire[[#This Row],[Référence]],listeProduits[],6,FALSE)+SUMIF(listeAchats[Référence],listeInventaire[[#This Row],[Référence]],listeAchats[Quantité])),"") -> 300 | M12: =IFERROR(listeInventaire[[#This Row],[Stock final]]*listeInventaire[[#This Row],[CUMP]],"") -> 5700 | N12: =IF(listeInventaire[[#This Row],[Stock final]]>listeInventaire[[#This Row],[Seuil d''alerte]],"Stock normal",IF(listeInventaire[[#This Row],[Stock final]]=0,"Non disponible","Stock faible")) -> Stock normal
C13: E3 | D13: =IFERROR(VLOOKUP(listeInventaire[[#This Row],[Référence]],listeProduits[],2,FALSE),"") -> Cuisinière SIERA | E13: =IFERROR(VLOOKUP(listeInventaire[[#This Row],[Référence]],listeProduits[],3,FALSE),"") -> Electro | F13: =IFERROR(VLOOKUP(listeInventaire[[#This Row],[Référence]],listeProduits[],4,FALSE),"") -> 1 unité | G13: =IFERROR(VLOOKUP(listeInventaire[[#This Row],[Référence]],listeProduits[],5,FALSE),"") -> 10 | H13: =IFERROR(VLOOKUP(listeInventaire[[#This Row],[Référence]],listeProduits[],6,FALSE),"") -> 6 | I13: =SUMIF(listeAchats[Référence],listeInventaire[[#This Row],[Référence]],listeAchats[Quantité]) -> 65 | J13: =SUMIF(listeVentes[Référence],listeInventaire[[#This Row],[Référence]],listeVentes[Quantité]) -> 28 | K13: =IFERROR(listeInventaire[[#This Row],[Stock initial]]+listeInventaire[[#This Row],[Entrées]]-listeInventaire[[#This Row],[Sorties]],"") -> 43 | L13: =IFERROR((VLOOKUP(listeInventaire[[#This Row],[Référence]],listeProduits[],8,FALSE)+SUMIF(listeAchats[Référence],listeInventaire[[#This Row],[Référence]],listeAchats[Total]))/(VLOOKUP(listeInventaire[[#This Row],[Référence]],listeProduits[],6,FALSE)+SUMIF(listeAchats[Référence],listeInventaire[[#This Row],[Référence]],listeAchats[Quantité])),"") -> 150 | M13: =IFERROR(listeInventaire[[#This Row],[Stock final]]*listeInventaire[[#This Row],[CUMP]],"") -> 6450 | N13: =IF(listeInventaire[[#This Row],[Stock final]]>listeInventaire[[#This Row],[Seuil d''alerte]],"Stock normal",IF(listeInventaire[[#This Row],[Stock final]]=0,"Non disponible","Stock faible")) -> Stock normal
C14: E4 | D14: =IFERROR(VLOOKUP(listeInventaire[[#This Row],[Référence]],listeProduits[],2,FALSE),"") -> Cuisinière CANDY | E14: =IFERROR(VLOOKUP(listeInventaire[[#This Row],[Référence]],listeProduits[],3,FALSE),"") -> Electro | F14: =IFERROR(VLOOKUP(listeInventaire[[#This Row],[Référence]],listeProduits[],4,FALSE),"") -> 1 unité | G14: =IFERROR(VLOOKUP(listeInventaire[[#This Row],[Référence]],listeProduits[],5,FALSE),"") -> 10 | H14: =IFERROR(VLOOKUP(listeInventaire[[#This Row],[Référence]],listeProduits[],6,FALSE),"") -> 0 | I14: =SUMIF(listeAchats[Référence],listeInventaire[[#This Row],[Référence]],listeAchats[Quantité]) -> 60 | J14: =SUMIF(listeVentes[Référence],listeInventaire[[#This Row],[Référence]],listeVentes[Quantité]) -> 60 | K14: =IFERROR(listeInventaire[[#This Row],[Stock initial]]+listeInventaire[[#This Row],[Entrées]]-listeInventaire[[#This Row],[Sorties]],"") -> 0 | L14: =IFERROR((VLOOKUP(listeInventaire[[#This Row],[Référence]],listeProduits[],8,FALSE)+SUMIF(listeAchats[Référence],listeInventaire[[#This Row],[Référence]],listeAchats[Total]))/(VLOOKUP(listeInventaire[[#This Row],[Référence]],listeProduits[],6,FALSE)+SUMIF(listeAchats[Référence],listeInventaire[[#This Row],[Référence]],listeAchats[Quantité])),"") -> 500 | M14: =IFERROR(listeInventaire[[#This Row],[Stock final]]*listeInventaire[[#This Row],[CUMP]],"") -> 0 | N14: =IF(listeInventaire[[#This Row],[Stock final]]>listeInventaire[[#This Row],[Seuil d''alerte]],"Stock normal",IF(listeInventaire[[#This Row],[Stock final]]=0,"Non disponible","Stock faible")) -> Non disponible
C15: C1 | D15: =IFERROR(VLOOKUP(listeInventaire[[#This Row],[Référence]],listeProduits[],2,FALSE),"") -> PLAYSTATION PS5 | E15: =IFERROR(VLOOKUP(listeInventaire[[#This Row],[Référence]],listeProduits[],3,FALSE),"") -> Consoles | F15: =IFERROR(VLOOKUP(listeInventaire[[#This Row],[Référence]],listeProduits[],4,FALSE),"") -> 1 unité | G15: =IFERROR(VLOOKUP(listeInventaire[[#This Row],[Référence]],listeProduits[],5,FALSE),"") -> 10 | H15: =IFERROR(VLOOKUP(listeInventaire[[#This Row],[Référence]],listeProduits[],6,FALSE),"") -> 3 | I15: =SUMIF(listeAchats[Référence],listeInventaire[[#This Row],[Référence]],listeAchats[Quantité]) -> 50 | J15: =SUMIF(listeVentes[Référence],listeInventaire[[#This Row],[Référence]],listeVentes[Quantité]) -> 40 | K15: =IFERROR(listeInventaire[[#This Row],[Stock initial]]+listeInventaire[[#This Row],[Entrées]]-listeInventaire[[#This Row],[Sorties]],"") -> 13 | L15: =IFERROR((VLOOKUP(listeInventaire[[#This Row],[Référence]],listeProduits[],8,FALSE)+SUMIF(listeAchats[Référence],listeInventaire[[#This Row],[Référence]],listeAchats[Total]))/(VLOOKUP(listeInventaire[[#This Row],[Référence]],listeProduits[],6,FALSE)+SUMIF(listeAchats[Référence],listeInventaire[[#This Row],[Référence]],listeAchats[Quantité])),"") -> 751.8867925 | M15: =IFERROR(listeInventaire[[#This Row],[Stock final]]*listeInventaire[[#This Row],[CUMP]],"") -> 9774.528302 | N15: =IF(listeInventaire[[#This Row],[Stock final]]>listeInventaire[[#This Row],[Seuil d''alerte]],"Stock normal",IF(listeInventaire[[#This Row],[Stock final]]=0,"Non disponible","Stock faible")) -> Stock normal
C16: C2 | D16: =IFERROR(VLOOKUP(listeInventaire[[#This Row],[Référence]],listeProduits[],2,FALSE),"") -> NINTENDO SWITCH | E16: =IFERROR(VLOOKUP(listeInventaire[[#This Row],[Référence]],listeProduits[],3,FALSE),"") -> Consoles | F16: =IFERROR(VLOOKUP(listeInventaire[[#This Row],[Référence]],listeProduits[],4,FALSE),"") -> 1 unité | G16: =IFERROR(VLOOKUP(listeInventaire[[#This Row],[Référence]],listeProduits[],5,FALSE),"") -> 10 | H16: =IFERROR(VLOOKUP(listeInventaire[[#This Row],[Référence]],listeProduits[],6,FALSE),"") -> 6 | I16: =SUMIF(listeAchats[Référence],listeInventaire[[#This Row],[Référence]],listeAchats[Quantité]) -> 40 | J16: =SUMIF(listeVentes[Référence],listeInventaire[[#This Row],[Référence]],listeVentes[Quantité]) -> 44 | K16: =IFERROR(listeInventaire[[#This Row],[Stock initial]]+listeInventaire[[#This Row],[Entrées]]-listeInventaire[[#This Row],[Sorties]],"") -> 2 | L16: =IFERROR((VLOOKUP(listeInventaire[[#This Row],[Référence]],listeProduits[],8,FALSE)+SUMIF(listeAchats[Référence],listeInventaire[[#This Row],[Référence]],listeAchats[Total]))/(VLOOKUP(listeInventaire[[#This Row],[Référence]],listeProduits[],6,FALSE)+SUMIF(listeAchats[Référence],listeInventaire[[#This Row],[Référence]],listeAchats[Quantité])),"") -> 407.0652174 | M16: =IFERROR(listeInventaire[[#This Row],[Stock final]]*listeInventaire[[#This Row],[CUMP]],"") -> 814.1304348 | N16: =IF(listeInventaire[[#This Row],[Stock final]]>listeInventaire[[#This Row],[Seuil d''alerte]],"Stock normal",IF(listeInventaire[[#This Row],[Stock final]]=0,"Non disponible","Stock faible")) -> Stock faible

Sheet TCD
A1: Somme de Stock final | B1: Somme de Valeur | G1: Catégorie | I1: Références | K1: Mois
A2: 366 | B2: 92630.48904 | G2: Biscuits | I2: B2 | K2: Janvier
G3: Electro | I3: E1 | K3: Février
G4: Consoles | I4: E4 | K4: Mars
G5: SmartPhone | I5: E3 | K5: Avril
I6: E2 | K6: Mai
A7: Somme de Quantité | B7: Somme de Total | I7: C2 | K7: Juin
A8: 992 | B8: 353878.95 | I8: C1
I9: S2
I10: S1
I11: B3
I12: B1
A13: Somme de Quantité | B13: Somme de Total
A14: 702 | B14: 297931
A17: Étiquettes de lignes | B17: Somme de Quantité
A18: Biscuits | B18: 562
A19: Consoles | B19: 90
A20: Electro | B20: 189
A21: SmartPhone | B21: 151
A22: Total général | B22: 992
A24: Étiquettes de lignes | B24: Somme de Total
A25: Biscuits | B25: 64043.95
A26: Consoles | B26: 53925
A27: Electro | B27: 68550
A28: SmartPhone | B28: 167360
A29: Total général | B29: 353878.95
A33: Étiquettes de lignes | B33: Somme de Total
A34: Biscuits | B34: 1141
A35: Consoles | B35: 57320
A36: Electro | B36: 67960
A37: SmartPhone | B37: 171510
A38: Total général | B38: 297931
A40: Étiquettes de lignes | B40: Somme de Valeur
A41: Biscuits | B41: 38499.8303
A42: Consoles | B42: 10588.65874
A43: Electro | B43: 17750
A44: SmartPhone | B44: 25792
A45: Total général | B45: 92630.48904
A48: Étiquettes de lignes | B48: Somme de Stock final
A49: Biscuits | B49: 254
A50: Consoles | B50: 15
A51: Electro | B51: 70
A52: SmartPhone | B52: 27
A53: Total général | B53: 366
A56: Étiquettes de lignes | B56: Somme de Quantité
A57: Biscuits | B57: 338
A58: Consoles | B58: 84
A59: Electro | B59: 133
A60: SmartPhone | B60: 147
A61: Total général | B61: 702
A65: Étiquettes de lignes | B65: Somme de Quantité | G65: Max
A66: janv | B66: 137 | E66: =A66 -> janv | F66: =VLOOKUP(E66,$A$66:$C$70,2,FALSE) -> 137 | G66: =IF(F66=MAX($F$66:$F$70),F66,"") -> 
A67: févr | B67: 184 | E67: =A67 -> févr | F67: =VLOOKUP(E67,$A$66:$C$70,2,FALSE) -> 184 | G67: =IF(F67=MAX($F$66:$F$70),F67,"") -> 
A68: mars | B68: 142 | E68: mars | F68: 142
A69: avr | B69: 106 | E69: avr | F69: 106
A70: mai | B70: 423 | E70: mai | F70: 423 | G70: 423
A71: Total général | B71: 992
A73: Étiquettes de lignes | B73: Somme de Quantité | G73: Max
A74: janv | B74: 71 | E74: =A74 -> janv | F74: =VLOOKUP(E74,$A$74:$B$78,2,FALSE) -> 71 | G74: =IF(F74=MAX($F$74:$F$78),F74,"") -> 
A75: févr | B75: 100 | E75: =A75 -> févr | F75: =VLOOKUP(E75,$A$74:$B$78,2,FALSE) -> 100 | G75: =IF(F75=MAX($F$74:$F$78),F75,"") -> 
A76: mars | B76: 187 | E76: mars | F76: 187
A77: avr | B77: 253 | E77: avr | F77: 253 | G77: 253
A78: mai | B78: 91 | E78: mai | F78: 91
A79: Total général | B79: 702
A81: Étiquettes de lignes | B81: Somme de Total | C81: Somme de Total2
A82: janv | B82: 51548 | C82: 51548
A83: févr | B83: 76664.4 | C83: 76664.4
A84: mars | B84: 38248 | C84: 38248
A85: avr | B85: 48081.15 | C85: 48081.15
A86: mai | B86: 139337.4 | C86: 139337.4
A87: Total général | B87: 353878.95 | C87: 353878.95
A90: Étiquettes de lignes | B90: Somme de Total | C90: Somme de Total2
A91: janv | B91: 38385.3 | C91: 38385.3
A92: févr | B92: 60319.5 | C92: 60319.5
A93: mars | B93: 69065 | C93: 69065
A94: avr | B94: 74985 | C94: 74985
A95: mai | B95: 55176.2 | C95: 55176.2
A96: Total général | B96: 297931 | C96: 297931
A99: Étiquettes de lignes | B99: Somme de Total
A100: Cuisinière CANDY | B100: 35400
A101: GOOGLE PIXEL 5 | B101: 42010
A102: IPHONE 13 PRO | B102: 129500
A103: Total général | B103: 206910
A106: Statue | B106: (Plusieurs éléments)
A108: Étiquettes de lignes | B108: Somme de Stock final
A109: Cuisinière CANDY | B109: 0 | D109: =A109 -> Cuisinière CANDY | E109: =VLOOKUP(D109,$A$109:$B$111,2,FALSE) -> 0 | F109: =IF(E109=0,"Non disponible","Stock faible") -> Non disponible
A110: NINTENDO SWITCH | B110: 2 | D110: =A110 -> NINTENDO SWITCH | E110: =VLOOKUP(D110,$A$109:$B$111,2,FALSE) -> 2 | F110: =IF(E110=0,"Non disponible","Stock faible") -> Stock faible
A111: Réfrigérateur WHIRLPOOL | B111: 8 | D111: Réfrigérateur WHIRLPOOL | E111: 8 | F111: Stock faible
A112: Total général | B112: 10
